fUST/lending_fUST_20250110
["ID","MTS","AMOUNT","RATE_DAILY","PERIOD"]
[348400932,1736509898716,188.177327,0.00013973,2]
[348400940,1736510778083,193.62086,0.00013973,2]
[348400941,1736510837210,-555.34017929,0.00016746,2]
[348400944,1736510852170,-4444.65982071,0.00016746,2]
[348400945,1736510852194,-2963.72797403,0.00016915,2]
[348400946,1736510946570,-300.0,0.00016614,2]
[348400947,1736510946592,-16528.0,0.00016614,2]
[348400948,1736510946617,-24900.0,0.00016615,2]
[348400949,1736510946639,-5000.0,0.00016746,2]
[348400950,1736510946662,-2036.27202597,0.00016915,2]
[348400951,1736510946685,-437.04922258,0.00017324,2]
[348400952,1736510946707,-500.0,0.00017324,2]
[348400953,1736510946728,-500.0,0.00017324,2]
[348400954,1736510946749,-233.34942894,0.00017324,2]
[348400955,1736510946771,-500.0,0.00017324,2]
[348400956,1736510946792,-500.0,0.00017324,2]
[348400957,1736510946813,-384.29410702,0.00017324,2]
[348400958,1736510946834,-255.75316484,0.00017324,2]
[348400959,1736510946859,-159.89239171,0.00017332,2]
[348400960,1736510946879,-1630.96973231,0.00017335,2]
[348400961,1736510946900,-8887.92536069,0.00017435,2]
[348400962,1736510946920,-5000.0,0.00017435,2]
[348400963,1736510946939,-5000.0,0.00017435,2]
[348400964,1736510946959,-4500.97905817,0.00017435,2]
[348400965,1736510947216,-499.02094183,0.00017435,2]
[348400966,1736510947239,-152.0,0.00017889,2]
[348400967,1736510948732,343.39982763,0.00019951,7]
[348400968,1736510951738,5000.0,0.00017896,2]
[348400969,1736510959697,3972.48261077,0.00017896,2]
[348400970,1736510973141,-500.0,0.00017324,2]
[348400971,1736510973164,-500.0,0.00017324,2]
[348400972,1736510973187,-500.0,0.00017324,2]
[348400973,1736510973212,-500.0,0.00017324,2]
[348400974,1736510973235,-500.0,0.00017324,2]
[348400975,1736510973259,-500.0,0.00017324,2]
[348400976,1736510973283,-500.0,0.00017324,2]
[348400977,1736510973305,-500.0,0.00017324,2]
[348400978,1736510973331,-300.0,0.00017324,2]
[348400979,1736510973355,-300.0,0.00017324,2]
[348400980,1736510973377,-500.0,0.00017324,2]
[348400981,1736510973398,-5000.0,0.00017717,2]
[348400982,1736510973420,-1027.51738923,0.00017896,2]
[348400983,1736510973442,-296.26903397,0.00018077,2]
[348401007,1736511032918,-300.0,0.00017323,2]
[348401008,1736511032929,-151.0,0.00017424,2]
[348401009,1736511032939,-2655.01775813,0.00017717,2]
[348401010,1736511033071,-2344.98224187,0.00017717,2]
[348401011,1736511033082,-5000.0,0.00017896,2]
[348401012,1736511033092,-653.97726493,0.00018077,2]
[348401013,1736511033102,-1630.96973224,0.00018187,2]
[348401014,1736511033113,-500.0,0.00018274,2]
[348401015,1736511033123,-500.0,0.00018274,2]
[348401016,1736511033133,-500.0,0.00018274,2]
[348401017,1736511033142,-500.0,0.00018274,2]
[348401018,1736511033152,-336.6072035,0.00018274,2]
[348401019,1736511033161,-677.515506,0.00018284,2]
[348401020,1736511033171,-581.58548853,0.000189,2]
[348401021,1736511033180,-420.0,0.00018914,2]
[348401022,1736511033190,-1630.96973224,0.00019038,2]
[348401023,1736511033199,-164.455702,0.00019178,2]
[348401024,1736511033210,-1630.96973224,0.0001989,2]
[348401025,1736511033220,-2333.79686683,0.00019942,2]
[348401026,1736511033245,-18212.39260917,0.00019942,2]
[348401027,1736511033254,-275.401,0.0001995,2]
[348401028,1736511033263,-228.41627609,0.0001995,2]
[348401029,1736511033272,-499.0,0.00019999,2]
[348401030,1736511033282,-3953.0,0.0002,2]
[348401031,1736511033291,-808.756,0.0002033,2]
[348401032,1736511033300,-193.62086,0.00020447,2]
[348401033,1736511033309,-587.0,0.00020652,2]
[348401034,1736511033319,-179.2975672,0.00020741,2]
[348401035,1736511033328,-169.81434243,0.00020741,2]
[348401036,1736511033337,-256.09625121,0.00020741,2]
[348401037,1736511033347,-1630.96973224,0.00020742,2]
[348401038,1736511033357,-4932.4571466,0.00020776,2]
[348401039,1736511033366,-2000.0,0.00021,2]
[348401040,1736511033375,-500.0,0.00021,2]
[348401041,1736511033384,-500.0,0.00021,2]
[348401042,1736511033394,-500.0,0.00021,2]
[348401043,1736511033403,-500.0,0.00021,2]
[348401044,1736511033413,-500.0,0.00021,2]
[348401045,1736511033422,-389.0,0.00021,2]
[348401046,1736511033431,-361.3393591,0.00021185,2]
[348401047,1736511033440,-2000.0,0.000212,2]
[348401048,1736511033450,-8140.40519472,0.00021286,2]
[348401049,1736511033459,-268.6558147,0.00021373,2]
[348401050,1736511033469,-500.0,0.00021373,2]
[348401051,1736511033479,-175.03782571,0.00021373,2]
[348401052,1736511033488,-178.17279337,0.00021373,2]
[348401053,1736511033497,-267.19456991,0.00021373,2]
[348401054,1736511033506,-319.35630516,0.00021373,2]
[348401055,1736511033515,-500.8169685,0.00021373,2]
[348401056,1736511033525,-116.73214091,0.00021398,2]
[348401060,1736511038633,-1668.05000002,0.0001715,2]
[348401078,1736511039005,-3331.94999998,0.0001715,2]
[348401079,1736511039014,-500.0,0.00017895,2]
[348401080,1736511039023,-500.0,0.00017895,2]
[348401081,1736511039032,-500.0,0.00017895,2]
[348401082,1736511039041,-500.0,0.00017895,2]
[348401083,1736511039051,-500.0,0.00017895,2]
[348401084,1736511039062,-500.0,0.00017895,2]
[348401085,1736511039071,-474.09431323,0.00017895,2]
[348401086,1736511039081,-500.0,0.00017895,2]
[348401087,1736511039090,-500.0,0.00017895,2]
[348401088,1736511039100,-500.0,0.00017895,2]
[348401089,1736511039109,-562.16664779,0.00017895,2]
[348401090,1736511039119,-500.0,0.00017895,2]
[348401091,1736511039129,-500.0,0.00017895,2]
[348401092,1736511039139,-500.0,0.00017895,2]
[348401093,1736511039148,-500.0,0.00017895,2]
[348401094,1736511039158,-500.0,0.00017895,2]
[348401095,1736511039168,-349.21364174,0.00017895,2]
[348401096,1736511039178,-576.85208891,0.00017895,2]
[348401097,1736511039188,-500.0,0.00017895,2]
[348401098,1736511039197,-500.0,0.00017895,2]
[348401099,1736511039206,-500.0,0.00017895,2]
[348401100,1736511039215,-518.42941071,0.00017895,2]
[348401101,1736511039224,-500.0,0.00017895,2]
[348401102,1736511039233,-500.0,0.00019178,2]
[348401103,1736511039242,-500.0,0.00019178,2]
[348401104,1736511039251,-500.0,0.00019178,2]
[348401105,1736511039261,-500.0,0.00019178,2]
[348401106,1736511039271,-500.0,0.00019178,2]
[348401107,1736511039280,-500.0,0.00019178,2]
[348401108,1736511039289,-454.28577303,0.00019178,2]
[348401109,1736511039298,-500.0,0.00019178,2]
[348401110,1736511039310,-500.0,0.00019178,2]
[348401111,1736511039320,-500.0,0.00019178,2]
[348401112,1736511039328,-500.0,0.00019178,2]
[348401113,1736511039337,-500.0,0.00019178,2]
[348401114,1736511039348,-500.0,0.00019178,2]
[348401115,1736511039357,-500.0,0.00019178,2]
[348401116,1736511039366,-500.0,0.00019178,2]
[348401117,1736511039375,-517.30054264,0.00021373,2]
[348401118,1736511039385,-266.74761628,0.00021373,2]
[348401119,1736511039395,-34.26785909,0.00021398,2]
[348401120,1736511039406,-190.57428221,0.00021399,2]
[348401121,1736511039417,-3928.12069942,0.000214,5]
[348401122,1736511039428,-3870.50940436,0.000214,5]
[348401123,1736511039439,-48412.73606603,0.000214,5]
[348401124,1736511039451,-68823.02343917,0.000214,5]
[348401125,1736511039467,-4714.60501181,0.000214,5]
[348401150,1736511040782,-1911.66262269,0.000214,5]
[348401151,1736511040795,-322.0,0.000214,5]
[348401155,1736511041073,-2064.87795131,0.000214,5]
[348401156,1736511041085,-950.0,0.000214,5]
[348401165,1736511043668,-161426.68210733,0.000214,5]
[348401171,1736511043723,-7571.10962889,0.000214,5]
[348401178,1736511043777,-252.87346695,0.000214,5]
[348401180,1736511043789,-38360.9058569,0.000214,5]
[348401462,1736511046736,-3323.04491963,0.00021186,2]
[348401468,1736511046776,-1676.95508037,0.00021186,2]
[348401470,1736511046785,-6770.31003744,0.000214,5]
[348401577,1736511186039,1055.52363143,0.00014985,2]
[348401578,1736511186329,1055.52363143,0.00014997,2]
[348401579,1736511186629,1055.52363143,0.00014998,2]
[348401580,1736511268525,-4185.02864027,0.00019601,2]
[348401581,1736511268546,-4781.88661436,0.00019799,2]
[348401582,1736511268570,-41.95474537,0.00019999,2]
[348401586,1736511874690,182.632791,0.00013973,2]
[348401590,1736512035139,-209.82464859,0.000193,2]
[348401591,1736512042714,-722.63724138,0.000193,2]
[348401592,1736512042737,-855.39687017,0.00019918,2]
[348401593,1736512042761,-300.0,0.00019939,2]
[348401594,1736512042784,-281.76458717,0.0001994,2]
[348401719,1736512237885,-1095.00602953,0.000189,2]
[348401720,1736512237895,-448.99069688,0.00019741,2]
[348401721,1736512237904,-302.60665372,0.0001984,2]
[348401722,1736512237914,-183.51365939,0.00019938,2]
[348401723,1736512237924,-436.0330603,0.00019938,2]
[348401724,1736512237933,-315.63601574,0.00019938,2]
[348401725,1736512237945,-184.36398426,0.00019938,2]
[348401726,1736512237955,-500.0,0.00019938,2]
[348401727,1736512237964,-500.0,0.00019938,2]
[348401728,1736512237974,-500.0,0.00019938,2]
[348401729,1736512237983,-500.0,0.00019938,2]
[348401730,1736512237993,-500.0,0.00019938,2]
[348401731,1736512238002,-406.12740064,0.00019938,2]
[348401732,1736512238012,-500.0,0.00019938,2]
[348401733,1736512238021,-500.0,0.00019938,2]
[348401734,1736512238031,-500.0,0.00019938,2]
[348401735,1736512238040,-500.0,0.00019938,2]
[348401736,1736512238050,-500.0,0.00019938,2]
[348401737,1736512238059,-500.0,0.00019938,2]
[348401738,1736512238068,-500.0,0.00019938,2]
[348401739,1736512238078,-454.6215847,0.00019938,2]
[348401740,1736512238087,-500.0,0.00019938,2]
[348401741,1736512238097,-500.0,0.00019938,2]
[348401742,1736512238106,-500.0,0.00019938,2]
[348401743,1736512238115,-379.97422044,0.00019938,2]
[348401744,1736512238124,-500.0,0.00019938,2]
[348401745,1736512238134,-500.0,0.00019938,2]
[348401746,1736512238143,-500.0,0.00019938,2]
[348401747,1736512238152,-500.0,0.00019938,2]
[348401748,1736512238162,-500.0,0.00019938,2]
[348401749,1736512238171,-500.0,0.00019938,2]
[348401750,1736512238181,-626.19999064,0.00019938,2]
[348401751,1736512238190,-500.0,0.00019938,2]
[348401752,1736512238200,-319.52554524,0.00019938,2]
[348401753,1736512238516,-180.47445476,0.00019938,2]
[348401754,1736512238526,-500.0,0.00019938,2]
[348401755,1736512238535,-426.75680218,0.00019938,2]
[348401756,1736512238545,-553.03230975,0.00019938,2]
[348401757,1736512238554,-500.0,0.00019938,2]
[348401758,1736512238563,-500.0,0.00019938,2]
[348401759,1736512238572,-500.0,0.00019938,2]
[348401760,1736512238581,-574.06801789,0.00019938,2]
[348401761,1736512238590,-500.0,0.00019938,2]
[348401762,1736512238599,-500.0,0.00019938,2]
[348401763,1736512238607,-500.0,0.00019938,2]
[348401764,1736512238616,-500.0,0.00019938,2]
[348401765,1736512238625,-500.0,0.00019938,2]
[348401766,1736512238634,-500.0,0.00019938,2]
[348401767,1736512238642,-500.0,0.00019938,2]
[348401768,1736512238651,-500.0,0.00019938,2]
[348401769,1736512238660,-500.0,0.00019938,2]
[348401770,1736512238669,-500.0,0.00019938,2]
[348401771,1736512238678,-500.0,0.00019938,2]
[348401772,1736512238688,-500.0,0.00019938,2]
[348401773,1736512238698,-500.0,0.00019938,2]
[348401774,1736512238707,-500.0,0.00019938,2]
[348401775,1736512238717,-500.0,0.00019938,2]
[348401776,1736512238726,-500.0,0.00019938,2]
[348401777,1736512238737,-500.0,0.00019938,2]
[348401778,1736512238746,-500.0,0.00019938,2]
[348401779,1736512238757,-500.0,0.00019938,2]
[348401780,1736512238767,-500.0,0.00019938,2]
[348401781,1736512238776,-500.0,0.00019938,2]
[348401782,1736512238785,-500.0,0.00019938,2]
[348401783,1736512238794,-500.0,0.00019938,2]
[348401784,1736512238803,-500.0,0.00019938,2]
[348401785,1736512238813,-500.0,0.00019938,2]
[348401786,1736512238822,-500.0,0.00019938,2]
[348401787,1736512238831,-500.0,0.00019938,2]
[348401788,1736512238840,-500.0,0.00019938,2]
[348401789,1736512238849,-500.0,0.00019938,2]
[348401790,1736512238858,-300.0,0.00019939,2]
[348401791,1736512238867,-66645.0,0.00019939,2]
[348401792,1736512238876,-24900.0,0.00019941,2]
[348401793,1736512238885,-564.460472,0.00020017,2]
[348401794,1736512238894,-303.03000668,0.00020039,4]
[348401795,1736512238903,-226.880101,0.00020072,2]
[348401796,1736512238912,-396.313176,0.00020231,2]
[348401797,1736512238921,-250.0,0.00020324,2]
[348401798,1736512238931,-774.915,0.0002033,2]
[348401799,1736512238939,-514.1002522,0.00020331,2]
[348401800,1736512238948,-182.632791,0.00020447,2]
[348401801,1736512238958,-153.47,0.00021108,2]
[348401802,1736512238967,-10261.3002514,0.00021177,2]
[348401803,1736512238976,-180.6696795,0.00021185,2]
[348401804,1736512238985,-154.84,0.00021399,2]
[348401805,1736512238994,-258.016,0.00021399,2]
[348401806,1736512239003,-457.04525463,0.00021399,2]
[348401807,1736512239012,-150079.12110854,0.000214,5]
[348401808,1736512239021,-12855.33,0.000214,2]
[348401809,1736512239031,-2007.68874693,0.000214,4]
[348401810,1736512239039,-150.0,0.000214,2]
[348401811,1736512239048,-383.5910532,0.000214,2]
[348401812,1736512239058,-305.9284392,0.000214,2]
[348401813,1736512239067,-213.5522929,0.000214,2]
[348401814,1736512239078,-3953.0,0.000216,4]
[348401815,1736512239087,-420.0,0.00021713,2]
[348401816,1736512239100,-151.0,0.00021917,2]
[348401817,1736512239109,-151.0,0.00021917,2]
[348401818,1736512239118,-151.0,0.00021917,2]
[348401819,1736512239127,-151.0,0.00021917,2]
[348401820,1736512239136,-151.0,0.00021917,2]
[348401821,1736512239145,-151.0,0.00021917,2]
[348401822,1736512239154,-151.0,0.00021917,2]
[348401823,1736512239163,-391.08808,0.00021917,2]
[348401824,1736512239173,-391.08808,0.00021917,2]
[348401825,1736512239184,-151.0,0.00021917,2]
[348401826,1736512239193,-151.0,0.00021917,2]
[348401827,1736512239202,-151.0,0.00021917,2]
[348401828,1736512239211,-151.0,0.00021917,2]
[348401829,1736512239220,-151.0,0.00021917,2]
[348401830,1736512239230,-151.0,0.00021917,2]
[348401831,1736512239240,-151.0,0.00021917,2]
[348401832,1736512239249,-151.0,0.00021917,2]
[348401833,1736512239259,-151.0,0.00021917,2]
[348401834,1736512239268,-247.464644,0.00021917,2]
[348401835,1736512239277,-151.0,0.00021917,2]
[348401836,1736512239287,-151.0,0.00021917,2]
[348401837,1736512239296,-151.0,0.00021917,2]
[348401838,1736512239305,-151.0,0.00021917,2]
[348401840,1736512239315,-153.854405,0.00021917,2]
[348401841,1736512239324,-500.0,0.00021917,2]
[348401842,1736512239333,-497.26531228,0.00021917,2]
[348401843,1736512239342,-159.616036,0.00021917,2]
[348401844,1736512239351,-151.0,0.00021917,2]
[348401845,1736512239361,-500.0,0.00021917,3]
[348401846,1736512239370,-151.0,0.00021917,2]
[348401847,1736512239379,-790.702864,0.00021917,2]
[348401848,1736512239389,-790.702864,0.00021917,2]
[348401849,1736512239398,-500.0,0.00021917,3]
[348401850,1736512239407,-500.0,0.00021917,3]
[348401851,1736512239417,-790.702864,0.00021917,2]
[348401852,1736512239426,-790.702864,0.00021917,2]
[348401853,1736512239435,-500.0,0.00021917,3]
[348401854,1736512239444,-500.0,0.00021917,3]
[348401855,1736512239453,-500.0,0.00021917,3]
[348401856,1736512239463,-510.72299546,0.00021917,3]
[348401857,1736512239472,-506.63747627,0.00021917,3]
[348401858,1736512239481,-501.78867252,0.00021917,3]
[348401859,1736512239492,-500.0,0.00021917,3]
[348401860,1736512239502,-500.0,0.00021917,3]
[348401861,1736512239511,-500.0,0.00021917,3]
[348401862,1736512239520,-502.05923141,0.00021917,3]
[348401863,1736512239530,-501.46086118,0.00021917,3]
[348401864,1736512239539,-500.0,0.00021917,3]
[348401865,1736512239548,-500.0,0.00021917,3]
[348401866,1736512239557,-500.0,0.00021917,3]
[348401867,1736512239566,-502.17379488,0.00021917,3]
[348401868,1736512239576,-501.49374388,0.00021917,3]
[348401870,1736512239586,-500.0,0.00021917,3]
[348401871,1736512239595,-500.0,0.00021917,3]
[348401872,1736512239604,-500.0,0.00021917,3]
[348401873,1736512239613,-500.0,0.00021917,3]
[348401874,1736512239623,-500.0,0.00021917,3]
[348401875,1736512239632,-502.84886075,0.00021917,3]
[348401876,1736512239642,-500.0,0.00021917,3]
[348401878,1736512239654,-500.0,0.00021917,3]
[348401880,1736512239663,-500.0,0.00021917,3]
[348401882,1736512239673,-500.0,0.00021917,3]
[348401884,1736512239682,-504.28990735,0.00021917,3]
[348401886,1736512239691,-500.0,0.00021917,3]
[348401888,1736512239702,-500.0,0.00021917,3]
[348401890,1736512239711,-168.312753,0.00021917,2]
[348401892,1736512239720,-500.0,0.00021917,3]
[348401894,1736512239730,-500.0,0.00021917,3]
[348401896,1736512239741,-168.312753,0.00021917,2]
[348401898,1736512239750,-504.67177803,0.00021917,3]
[348401900,1736512239759,-500.0,0.00021917,3]
[348401902,1736512239768,-200.0,0.00021917,3]
[348401904,1736512239777,-500.0,0.00021917,3]
[348401906,1736512239786,-500.0,0.00021917,3]
[348401908,1736512239795,-517.33261379,0.00021917,3]
[348401910,1736512239804,-500.0,0.00021917,3]
[348401912,1736512239813,-500.0,0.00021917,3]
[348401914,1736512239822,-500.0,0.00021917,3]
[348401916,1736512239831,-500.0,0.00021917,3]
[348401918,1736512239840,-500.0,0.00021917,3]
[348401920,1736512239849,-500.0,0.00021917,3]
[348401922,1736512239858,-151.0,0.00021917,2]
[348401924,1736512239867,-500.0,0.00021917,3]
[348401926,1736512239876,-500.0,0.00021917,3]
[348401928,1736512239885,-500.0,0.00021917,3]
[348401930,1736512239894,-500.0,0.00021917,3]
[348401932,1736512239904,-500.0,0.00021917,3]
[348401934,1736512239913,-500.0,0.00021917,3]
[348401936,1736512239922,-500.0,0.00021917,3]
[348401938,1736512239931,-501.94412452,0.00021917,3]
[348401940,1736512239940,-500.0,0.00021917,3]
[348401942,1736512239949,-296.46359999,0.00021917,3]
[348401945,1736512239965,-207.95593157,0.00021917,3]
[348401947,1736512239974,-500.0,0.00021917,3]
[348401949,1736512239983,-503.70448565,0.00021917,3]
[348401951,1736512239992,-500.0,0.00021917,3]
[348401953,1736512240002,-500.0,0.00021917,3]
[348401955,1736512240011,-501.58423369,0.00021917,3]
[348401957,1736512240021,-500.93627633,0.00021917,3]
[348401959,1736512240031,-500.0,0.00021917,3]
[348401961,1736512240040,-500.0,0.00021917,3]
[348401963,1736512240049,-151.0,0.00021917,2]
[348401965,1736512240058,-500.0,0.00021917,3]
[348401967,1736512240067,-500.0,0.00021917,3]
[348401969,1736512240076,-151.0,0.00021917,2]
[348401971,1736512240085,-500.0,0.00021917,3]
[348401973,1736512240095,-500.0,0.00021917,3]
[348401975,1736512240104,-500.0,0.00021917,3]
[348401977,1736512240113,-500.0,0.00021917,3]
[348401979,1736512240123,-500.0,0.00021917,3]
[348401981,1736512240132,-500.0,0.00021917,3]
[348401983,1736512240142,-500.0,0.00021917,3]
[348401985,1736512240151,-501.51866144,0.00021917,3]
[348401987,1736512240160,-500.0,0.00021917,3]
[348401989,1736512240169,-500.0,0.00021917,3]
[348401991,1736512240178,-569.4232472,0.00021917,3]
[348402001,1736512240249,-500.0,0.00021917,3]
[348402003,1736512240266,-500.0,0.00021917,3]
[348402005,1736512240276,-500.0,0.00021917,3]
[348402007,1736512240285,-500.0,0.00021917,3]
[348402009,1736512240294,-500.0,0.00021917,3]
[348402011,1736512240304,-266.73128165,0.00021917,3]
[348402013,1736512240313,-500.95742884,0.00021917,3]
[348402015,1736512240322,-500.0,0.00021917,3]
[348402017,1736512240332,-558.38540591,0.00021917,3]
[348402019,1736512240341,-501.0744964,0.00021917,3]
[348402021,1736512240350,-501.56190674,0.00021917,3]
[348402022,1736512240360,-500.0,0.00021917,3]
[348402023,1736512240369,-501.67575021,0.00021917,3]
[348402024,1736512240378,-500.0,0.00021917,3]
[348402025,1736512240387,-501.79762552,0.00021917,3]
[348402026,1736512240396,-500.0,0.00021917,3]
[348402027,1736512240406,-500.0,0.00021917,3]
[348402028,1736512240415,-500.0,0.00021917,3]
[348402029,1736512240424,-500.0,0.00021917,3]
[348402030,1736512240434,-500.0,0.00021917,3]
[348402031,1736512240443,-500.0,0.00021917,3]
[348402032,1736512240451,-500.0,0.00021917,3]
[348402033,1736512240460,-500.0,0.00021917,3]
[348402034,1736512240469,-500.0,0.00021917,3]
[348402035,1736512240478,-505.29237894,0.00021917,3]
[348402036,1736512240488,-500.0,0.00021917,3]
[348402037,1736512240497,-500.0,0.00021917,3]
[348402038,1736512240506,-500.0,0.00021917,3]
[348402039,1736512240515,-202.13813654,0.00021917,3]
[348402040,1736512240524,-500.0,0.00021917,3]
[348402041,1736512240533,-500.0,0.00021917,3]
[348402042,1736512240542,-500.0,0.00021917,3]
[348402043,1736512240552,-500.0,0.00021917,3]
[348402044,1736512240561,-500.0,0.00021917,3]
[348402045,1736512240570,-500.0,0.00021917,3]
[348402047,1736512240579,-500.0,0.00021917,3]
[348402049,1736512240588,-151.0,0.00021917,2]
[348402051,1736512240597,-500.0,0.00021917,3]
[348402053,1736512240607,-500.0,0.00021917,3]
[348402055,1736512240616,-500.0,0.00021917,3]
[348402057,1736512240625,-506.57616347,0.00021917,3]
[348402059,1736512240635,-500.0,0.00021917,3]
[348402061,1736512240644,-502.56793597,0.00021917,3]
[348402063,1736512240653,-500.0,0.00021917,3]
[348402065,1736512240662,-500.0,0.00021917,3]
[348402067,1736512240672,-500.0,0.00021917,3]
[348402069,1736512240681,-151.0,0.00021917,2]
[348402071,1736512240690,-500.0,0.00021917,3]
[348402073,1736512240700,-500.0,0.00021917,3]
[348402075,1736512240708,-500.0,0.00021917,3]
[348402077,1736512240718,-500.0,0.00021917,3]
[348402079,1736512240727,-500.0,0.00021917,3]
[348402081,1736512240736,-446.858232,0.00021917,3]
[348402084,1736512240755,-53.141768,0.00021917,3]
[348402086,1736512240764,-500.0,0.00021917,3]
[348402088,1736512240773,-500.0,0.00021917,3]
[348402090,1736512240783,-500.0,0.00021917,3]
[348402092,1736512240792,-500.0,0.00021917,3]
[348402094,1736512240802,-500.0,0.00021917,3]
[348402096,1736512240811,-502.3459423,0.00021917,3]
[348402098,1736512240821,-368.19436166,0.00021917,3]
[348402100,1736512240831,-500.0,0.00021917,3]
[348402102,1736512240840,-500.0,0.00021917,3]
[348402104,1736512240849,-500.0,0.00021917,3]
[348402106,1736512240859,-500.0,0.00021917,3]
[348402108,1736512240868,-151.0,0.00021917,2]
[348402111,1736512240878,-151.0,0.00021917,2]
[348402113,1736512240887,-500.0,0.00021917,3]
[348402115,1736512240896,-500.0,0.00021917,3]
[348402117,1736512240905,-500.0,0.00021917,3]
[348402119,1736512240914,-502.98263348,0.00021917,3]
[348402121,1736512240923,-500.0,0.00021917,3]
[348402122,1736512240931,-154.231526,0.00021917,2]
[348402124,1736512240941,-500.0,0.00021917,3]
[348402126,1736512240950,-421.41135891,0.00021917,3]
[348402129,1736512240959,-500.0,0.00021917,3]
[348402131,1736512240970,-500.0,0.00021917,3]
[348402133,1736512240979,-500.0,0.00021917,3]
[348402135,1736512240990,-500.0,0.00021917,3]
[348402137,1736512240999,-500.0,0.00021917,3]
[348402139,1736512241008,-500.0,0.00021917,3]
[348402141,1736512241017,-505.36769251,0.00021917,3]
[348402143,1736512241027,-500.0,0.00021917,3]
[348402145,1736512241036,-506.56164683,0.00021917,3]
[348402147,1736512241045,-500.0,0.00021917,3]
[348402149,1736512241054,-503.45019622,0.00021917,3]
[348402151,1736512241063,-500.0,0.00021917,3]
[348402153,1736512241073,-506.47532817,0.00021917,3]
[348402155,1736512241082,-503.33007149,0.00021917,3]
[348402157,1736512241091,-500.0,0.00021917,3]
[348402159,1736512241101,-500.0,0.00021917,3]
[348402161,1736512241110,-500.8198669,0.00021917,3]
[348402163,1736512241118,-500.0,0.00021917,3]
[348402164,1736512241127,-523.22937153,0.00021917,3]
[348402166,1736512241137,-500.0,0.00021917,3]
[348402168,1736512241147,-500.0,0.00021917,3]
[348402170,1736512241157,-500.0,0.00021917,3]
[348402172,1736512241166,-500.0,0.00021917,3]
[348402174,1736512241175,-500.0,0.00021917,3]
[348402176,1736512241184,-524.16449791,0.00021917,3]
[348402178,1736512241193,-151.0,0.00021917,2]
[348402180,1736512241204,-500.0,0.00021917,3]
[348402182,1736512241213,-501.74571841,0.00021917,3]
[348402184,1736512241222,-502.90299173,0.00021917,3]
[348402186,1736512241231,-500.0,0.00021917,3]
[348402188,1736512241241,-500.0,0.00021917,3]
[348402190,1736512241250,-502.52728249,0.00021917,3]
[348402192,1736512241260,-601.79834697,0.00021917,3]
[348402194,1736512241269,-151.0,0.00021917,2]
[348402196,1736512241278,-445.45702559,0.00021917,3]
[348402199,1736512241292,-54.54297441,0.00021917,3]
[348402201,1736512241301,-504.90963952,0.00021917,3]
[348402203,1736512241311,-500.0,0.00021917,3]
[348402205,1736512241320,-151.0,0.00021917,2]
[348402207,1736512241329,-403.99238607,0.00021917,3]
[348402213,1736512241383,-96.00761393,0.00021917,3]
[348402215,1736512241392,-500.0,0.00021917,3]
[348402218,1736512241402,-500.0,0.00021917,3]
[348402219,1736512241411,-500.0,0.00021917,3]
[348402222,1736512241421,-500.0,0.00021917,3]
[348402224,1736512241431,-500.0,0.00021917,3]
[348402225,1736512241440,-500.0,0.00021917,3]